[Event "12th WLC Weekend 2022"]
[Site "Eindhoven"]
[Date "2022.05.14"]
[Round "3.13"]
[White "Van de Lagemaat, Arend"]
[Black "Ciornei, Dragos"]
[Result "1/2-1/2"]
[ECO "A49"]
[WhiteElo "1995"]
[BlackElo "2164"]
[Annotator "TA"]
[PlyCount "84"]
[EventDate "2022.05.13"]
[EventType "swiss"]
[EventCountry "NED"]
[SourceTitle "playchess.com"]
[Source "ChessBase"]
[SourceQuality "1"]
[TimeControl "5400+30"]

{[%evp 13,84,14,35,31,39,27,25,7,54,29,39,4,11,0,0,-81,-35,-52,-16,-53,-39,-50,-24,-41,-33,-66,-44,-25,45,-22,36,35,68,50,81,44,69,38,72,31,26,0,16,20,36,42,62,8,28,0,6,-2,-2,-2,-2,-2,-2,-10,-2,-7,-12,-11,-4,-42,-19,-27,-31,-27,-6,-33,-21,-10,0]} 1. d4 {[%emt 0:00:04]} Nf6 {[%emt 0:00:14]} 2. Nf3 {[%emt 0:00:04]} g6 {[%emt 0:00:12]} 3. g3 {[%emt 0:00:05]} Bg7 {[%emt 0:00:18]} 4. Bg2 {[%emt 0:00:07]} d6 {[%emt 0:00:29]} 5. O-O {[%emt 0:00:05]} O-O {[%emt 0:00:18]} 6. b3 {[%emt 0:00:02]} c6 {[%emt 0:05:53]} 7. Bb2 {[%emt 0:00:05]} Nbd7 {[%emt 0:01:31][%cal Oe7e5] 7...Bf5 injects fresh life into this line.} 8. Re1 {[%emt 0:00:21] A49: 1 d4 Nf6 2 Nf3 g6 3 g3: Anti-King's Indian systems.} Qc7 {[%emt 0:01:34]} 9. e4 {[%emt 0:00:48]} e5 {[%emt 0:00:42]} 10. dxe5 {[%emt 0:02:13] White has an edge.} dxe5 {[%emt 0:01:31]} (10... Nxe5 $11 11. Nd4 a6) 11. a4 {[%emt 0:01:54]} Re8 {[%emt 0:01:34]} 12. Nbd2 {[%emt 0:02:41]} Bf8 {[%emt 0:08:11]} 13. Qe2 {[%emt 0:02:29]} a5 {[%emt 0:02:54] [#]} 14. Rad1 $146 {[%emt 0:02:15]} (14. Red1 $11 {remains equal.}) ({Predecessor:} 14. h3 b6 15. Nh2 Ba6 16. Qf3 Rad8 17. Bf1 Bxf1 18. Ndxf1 Re6 19. Ng4 h5 20. Nxf6+ Rxf6 {0-1 (33) Gajic,D (2335)-Narancic,V (2380) Vrnjacka Banja 1996}) 14... b6 {[%emt 0:03:32]} (14... b5 $17) 15. Nc4 {[%emt 0:03:03]} Ba6 {[%emt 0:03:19]} 16. Nfd2 {[%emt 0:03:59]} Bb4 {[%emt 0:09:49]} 17. c3 {[%emt 0:00:15]} Bf8 {[%emt 0:00:42]} 18. Bf1 {[%emt 0:03:22]} (18. Qd3 {keeps more tension.} Ng4 19. Qf3 h5 20. h3) 18... h5 {[%emt 0:10:30]} 19. h3 {[%emt 0:02:52]} Bc5 {[%emt 0:05:52]} 20. Nf3 {[%emt 0:02:36]} Nf8 {[%emt 0:05:10]} ({Black should try} 20... b5 $11 21. axb5 cxb5) 21. Bc1 {[%emt 0:01:08]} (21. Qd2 $14) 21... N8h7 {[%emt 0:01:18]} (21... b5 $11 22. axb5 cxb5) 22. Qc2 $14 {[%emt 0:02:19]} Re6 {[%emt 0:06:11]} 23. Kg2 {[%emt 0:03:17]} Rae8 {[%emt 0:01:07]} 24. Bd3 {[%emt 0:01:54]} Bc8 {[%emt 0:02:24]} 25. Nh4 {[%emt 0:03:27]} Qe7 {[%emt 0:03:06]} 26. Ne3 {[%emt 0:01:16]} Rd6 {[%emt 0:02:34]} 27. Bc4 {[%emt 0:03:11] Against Qe6. Black must now prevent Nxg6.} Rxd1 {[%emt 0:04:55]} 28. Rxd1 {[%emt 0:03:43] aiming for Nxg6.} Kh8 {[%emt 0:04:33]} 29. Nf3 {[%emt 0:09:39][%cal Ob3b4]} Kg7 {[%emt 0:00:48]} 30. Qd3 {[%emt 0:04:04] White is more active.} (30. Bf1 $14) 30... Nd7 {[%emt 0:02:50][%cal Bf6d7,Bd7f8,Bf8e6][%mdl 32]} 31. Nh4 {[%emt 0:01:50]} Ndf8 {[%emt 0:01:47]} 32. Nc2 {[%emt 0:02:09]} Ne6 {[%emt 0:02:34] Threatens to win with ...Rd8.} ({Much less strong is} 32... Ng5 33. b4 Bxh3+ 34. Kg1 $16) 33. Nf3 {[%emt 0:01:44]} ({Much weaker is} 33. Qd2 {[#]} Nf4+ $1 34. Kh2 Ng5 $1 $17) 33... Rd8 {[%emt 0:02:03]} 34. Qe2 {[%emt 0:01:08]} Rxd1 {[%emt 0:00:09]} (34... Neg5 {with more complications.} 35. Rxd8 Qxd8 36. Nxg5 Nxg5 37. h4 Qd7) 35. Qxd1 {[%emt 0:00:06]} Neg5 {[%emt 0:01:10]} 36. Nxg5 {[%emt 0:03:54]} Nxg5 {[%emt 0:00:09]} 37. Bxg5 {[%emt 0:00:57]} Qxg5 {[%emt 0:00:09]} 38. Ne1 {[%emt 0:05:00]} Qf6 {[%emt 0:03:47]} 39. Nd3 {[%emt 0:00:53]} Bd6 {[%emt 0:01:26]} 40. Qe2 {[%emt 0:01:08]} h4 {[%emt 0:01:18]} 41. Qe3 {[%emt 0:00:45]} Bc7 {[%emt 0:00:59]} 42. g4 {[%emt 0:00:57]} g5 {[%emt 0:00:35] Weighted Error Value: White=0.25 (precise) /Black=0.21 (precise)} 1/2-1/2

[Event "12th WLC Weekend 2022"]
[Site "Eindhoven"]
[Date "2022.05.14"]
[Round "3.14"]
[White "Albers, Sasa"]
[Black "Winkels, Marcel"]
[Result "1-0"]
[ECO "B90"]
[WhiteElo "2117"]
[BlackElo "1965"]
[Annotator "TA"]
[PlyCount "87"]
[EventDate "2022.05.13"]
[EventType "swiss"]
[EventCountry "NED"]
[SourceTitle "playchess.com"]
[Source "ChessBase"]
[SourceQuality "1"]
[TimeControl "5400+30"]

{[%evp 21,87,18,16,16,8,13,20,0,8,0,69,62,68,56,86,61,141,133,201,145,137,133,155,146,150,142,147,142,147,139,164,135,129,131,122,132,164,145,144,126,183,127,116,125,271,278,271,243,302,266,337,313,756,722,906,893,854,556,635,614,730,702,713,704,684,650,29976,29976]} 1. e4 {[%emt 0:00:03]} c5 {[%emt 0:00:05]} 2. Nf3 {[%emt 0:00:03]} d6 {[%emt 0:00:01]} 3. d4 {[%emt 0:00:06]} cxd4 {[%emt 0:00:04]} 4. Nxd4 {[%emt 0:00:07]} Nf6 {[%emt 0:00:05]} 5. Nc3 {[%emt 0:00:06]} a6 {[%emt 0:00:17]} 6. Be3 {[%emt 0:00:17]} e5 {[%emt 0:00:05]} 7. Nb3 {[%emt 0:00:04]} Be6 {[%emt 0:00:04]} 8. Qd2 {[%emt 0:00:08]} Nbd7 {[%emt 0:00:24]} 9. f3 {[%emt 0:00:10]} h5 {[%emt 0:00:09]} 10. O-O-O {[%emt 0:00:05]} Be7 {[%emt 0:00:14]} 11. Kb1 {[%emt 0:00:04]} Rc8 {[%emt 0:00:17] is recently more successful than 11...b5.} 12. Bd3 {[%emt 0:02:08] B90: Sicilian Najdorf: Unusual White 6th moves, 6 Be3 Ng4 and 6 Be3 e5.} b5 {[%emt 0:05:54]} 13. h3 {[%emt 0:04:44]} h4 {[%emt 0:02:52]} 14. f4 {[%emt 0:01:59] The position is equal.} Qc7 {[%emt 0:11:50]} 15. Rhe1 {[%emt 0:04:18]} Nb6 {[%emt 0:08:55]} (15... O-O $1 $11) 16. Bxb6 $14 {[%emt 0:08:12]} Qxb6 {[%emt 0:00:12]} 17. Nd5 $1 {[%emt 0:00:44]} Bxd5 {[%emt 0:14:53]} 18. exd5 {[%emt 0:00:15] [#]} Nd7 $146 {[%emt 0:08:50]} (18... Rh5 $14) ({Predecessor:} 18... Qc7 19. fxe5 dxe5 20. Qg5 O-O 21. Rxe5 Nxd5 22. Qf5 g6 23. Qe4 Nf6 24. Rxe7 Nxe4 25. Rxc7 Rxc7 26. Bxe4 {1-0 (34) Svidler,P (2723)-Gulkov,I (2358) Chess.com INT 2020}) 19. Bf5 $16 {[%emt 0:06:26]} Bf6 {[%emt 0:00:50]} (19... Rc7 $16 {keeps fighting.} 20. Na5 (20. Bxd7+ Rxd7 21. Na5 O-O $16) 20... O-O 21. Bxd7 Rxd7) 20. Na5 {[%emt 0:05:28][%cal Bb3a5,Ba5c6,Bc6e5][%mdl 32]} Rc7 {[%emt 0:07:00]} 21. Nc6 {[%emt 0:01:25] [#] Hoping for Qb4.} O-O {[%emt 0:03:03]} 22. Bxd7 {[%emt 0:02:02] White is much more active. The black rooks are badly placed.} Rxd7 {[%emt 0:00:08]} 23. fxe5 {[%emt 0:00:56]} dxe5 {[%emt 0:00:23]} 24. Nxe5 {[%emt 0:00:13]} Rd6 {[%emt 0:01:40]} 25. Ng4 {[%emt 0:07:04]} Qd8 {[%emt 0:04:33]} 26. Nxf6+ {[%emt 0:04:12]} Qxf6 {[%emt 0:00:12]} 27. Re4 {[%emt 0:00:23]} Rfd8 {[%emt 0:01:21] [#]} 28. Rd4 {[%emt 0:00:06]} Re8 {[%emt 0:01:31]} 29. a3 {[%emt 0:02:26]} Re5 {[%emt 0:00:55]} 30. Qb4 {[%emt 0:03:10]} Re2 {[%emt 0:03:31]} (30... Rg5 $16 31. R4d2 (31. Rxh4 Rgxd5 32. Rxd5 Rxd5 $16) 31... Rf5) 31. R4d2 {[%emt 0:01:53]} ({White should try} 31. Rxh4 $18 Qf5 32. Qc3) 31... Re5 {[%emt 0:01:49]} 32. a4 {[%emt 0:12:14]} bxa4 {[%emt 0:05:37] A mistake that costs the game.} (32... g5 $16 33. axb5 axb5) 33. Qxa4 $18 {[%emt 0:01:58]} Qf5 {[%emt 0:02:02][%cal Re5d5]} 34. Qb3 {[%emt 0:00:30]} ({Less strong is} 34. Qxh4 Rexd5 35. Rxd5 Rxd5 $16) 34... Re8 {[%emt 0:01:46] Inhibits Qb8.} 35. Qd3 {[%emt 0:03:08]} Qc8 {[%emt 0:02:01]} 36. c4 {[%emt 0:00:26][%cal Bc2c4,Bc4c5,Bc5d6][%mdl 32]} Rg6 $2 {[%emt 0:08:31]} (36... Rdd8 37. Qc2 Qc5) 37. d6 {[%emt 0:04:05][%cal Bd5d6,Bd6d7][%mdl 32] Threatens to win with d7.} Qc6 {[%emt 0:02:28]} 38. d7 {[%emt 0:00:41]} Rd8 {[%emt 0:00:05]} 39. Qd5 {[%emt 0:01:46]} Qxd5 {[%emt 0:01:58]} 40. Rxd5 {[%emt 0:00:07]} ({Inferior is} 40. cxd5 Rd6 $11) 40... Re6 {[%emt 0:01:30]} 41. c5 {[%emt 0:00:51] Strongly threatening Rd6.} Kf8 {[%emt 0:00:38]} 42. Rc1 {[%emt 0:01:15] And now c6 would win.} Rc6 {[%emt 0:00:18]} 43. Rd6 {[%emt 0:00:14]} Rxd6 {[%emt 0:00:54]} 44. cxd6 {[%emt 0:00:02] Weighted Error Value: White=0.19 (very precise) /Black=0.46} 1-0

[Event "12th WLC Weekend 2022"]
[Site "Eindhoven"]
[Date "2022.05.14"]
[Round "3.15"]
[White "Van Helvoort, Rob"]
[Black "Weijers, Ralf"]
[Result "1/2-1/2"]
[ECO "B07"]
[WhiteElo "2133"]
[BlackElo "1857"]
[Annotator "TA"]
[PlyCount "58"]
[EventDate "2022.05.13"]
[EventType "swiss"]
[EventCountry "NED"]
[SourceTitle "playchess.com"]
[Source "ChessBase"]
[SourceQuality "1"]
[TimeControl "5400+30"]

{[%evp 9,58,34,40,53,95,85,88,51,116,112,139,129,177,184,183,180,186,154,160,156,187,186,188,187,177,89,112,108,97,119,113,90,109,88,108,93,110,52,49,60,43,34,85,60,122,40,56,29,29,29,33]} 1. e4 {[%emt 0:00:18]} d6 {[%emt 0:00:03]} 2. d4 {[%emt 0:00:20]} Nf6 {[%emt 0:00:05]} 3. Bd3 {[%emt 0:00:40]} Nbd7 {[%emt 0:00:17]} 4. Ne2 {[%emt 0:02:46]} e5 {[%emt 0:01:05]} 5. c3 {[%emt 0:00:18]} c6 {[%emt 0:00:52]} 6. O-O {[%emt 0:01:18] B07: Pirc Defence: Miscellaneous Systems.} h6 {[%emt 0:01:13]} 7. f4 {[%emt 0:01:36]} Be7 {[%emt 0:01:47]} 8. Nd2 {[%emt 0:07:51] [#] White is better.} exf4 $146 {[%emt 0:03:24]} (8... O-O $14) ({Predecessor:} 8... Nb6 9. Nf3 exf4 10. Bxf4 Be6 11. Ng3 Qd7 12. e5 dxe5 13. Nxe5 Qc8 14. Nh5 Nxh5 15. Qxh5 {1-0 (28) Gjergji,R (1917)-Djukic,S (2197) Belgrade 2013}) 9. Nxf4 $16 {[%emt 0:00:09]} ({Resist} 9. Rxf4 O-O $14) 9... g5 {[%emt 0:00:34]} 10. Ne2 {[%emt 0:07:16]} Qc7 {[%emt 0:05:24]} (10... Nh5 $16) 11. Ng3 $18 {[%emt 0:00:58]} Nf8 {[%emt 0:01:28][%cal Bd7f8,Bf8g6,Bg6e5,Be5g4,Bg4f6][%mdl 32]} 12. Nc4 {[%emt 0:04:53]} ({Don't take} 12. Qb3 $6 Be6 13. Qc2 O-O-O $16) 12... Bg4 {[%emt 0:02:45]} 13. Be2 {[%emt 0:00:41]} Be6 {[%emt 0:03:21]} 14. Ne3 {[%emt 0:04:13]} O-O-O {[%emt 0:03:56]} 15. d5 {[%emt 0:03:01]} Bd7 {[%emt 0:05:57]} 16. c4 {[%emt 0:15:06]} Ng6 {[%emt 0:01:59]} 17. Ng4 {[%emt 0:08:30]} (17. b4 $18) 17... Nxg4 {[%emt 0:02:10]} 18. Bxg4 {[%emt 0:00:07]} Bxg4 {[%emt 0:01:13]} 19. Qxg4+ {[%emt 0:00:01]} Kb8 {[%emt 0:00:13][%cal Oh6h5]} 20. Be3 {[%emt 0:00:47]} Ne5 {[%emt 0:02:02]} 21. Qe2 {[%emt 0:00:02]} h5 {[%emt 0:01:53]} 22. Nf5 {[%emt 0:05:08]} Bf6 {[%emt 0:04:49]} 23. Bd4 {[%emt 0:02:17] White is more active.} (23. Nd4 $16 Be7 24. Rf5) 23... Ng4 $14 {[%emt 0:04:21]} 24. Bxf6 {[%emt 0:04:17]} Nxf6 {[%emt 0:00:15]} 25. dxc6 {[%emt 0:15:59]} bxc6 {[%emt 0:03:11]} ({Black should play} 25... Qxc6 $14 26. Nd4 Qc5) 26. Qd3 {[%emt 0:03:07]} Qb6+ {[%emt 0:03:08] [#]} (26... d5 $14) 27. Qd4 {[%emt 0:01:01]} ({Better is} 27. Kh1 $1 $16) 27... Ng4 {[%emt 0:05:05]} 28. Qxb6+ {[%emt 0:00:43]} axb6 {[%emt 0:00:02]} 29. Nd4 {[%emt 0:00:30]} Ne5 {[%emt 0:00:15] Black defended with fortune.  Weighted Error Value: White=0.19 (very precise) /Black=0.20 (precise)} 1/2-1/2

[Event "12th WLC Weekend 2022"]
[Site "Eindhoven"]
[Date "2022.05.14"]
[Round "3.16"]
[White "Kools, Jasper"]
[Black "Coenen, Eduard"]
[Result "0-1"]
[ECO "A41"]
[WhiteElo "1774"]
[BlackElo "2030"]
[Annotator "TA"]
[PlyCount "66"]
[EventDate "2022.05.13"]
[EventType "swiss"]
[EventCountry "NED"]
[SourceTitle "playchess.com"]
[Source "ChessBase"]
[SourceQuality "1"]
[TimeControl "5400+30"]

{[%evp 9,66,39,36,35,44,42,35,37,68,12,23,1,4,-43,-16,-3,0,-193,0,0,68,79,72,-9,-6,-9,10,-12,-14,-43,22,0,0,0,0,0,0,-241,-257,-473,-472,-464,-460,-445,-379,-353,-340,-377,-374,-375,-378,-313,-209,-931,-948,-840,-819,-2052,-1930]} 1. d4 {[%emt 0:00:06]} g6 {[%emt 0:00:24]} 2. g3 {[%emt 0:00:12]} Bg7 {[%emt 0:00:25]} 3. Nf3 {[%emt 0:00:17]} d6 {[%emt 0:00:42]} 4. Bg2 {[%emt 0:00:46]} Nc6 {[%emt 0:00:32]} 5. O-O {[%emt 0:04:59]} e5 {[%emt 0:01:54]} 6. dxe5 {[%emt 0:02:29] A41: 1 d4 d6: Tartakower System and Modern Defence.} dxe5 {[%emt 0:00:40]} 7. Qxd8+ {[%emt 0:02:25]} Nxd8 {[%emt 0:00:07]} 8. Nc3 {[%emt 0:03:38] White is slightly better.} Ne6 {[%emt 0:05:04] [#]} 9. Be3 $146 {[%emt 0:03:19]} (9. Ng5 $14) ({Predecessor:} 9. Ng5 Nxg5 10. Bxg5 f6 11. Be3 c6 12. Ne4 Ne7 13. Nd6+ Kd7 14. Rad1 Ke6 15. Bc5 {1-0 (29) Moradiabadi,E (2538)-De Hoogt,I (2131) Ghent 2018}) 9... Ne7 {[%emt 0:02:59]} 10. Rfd1 {[%emt 0:05:24]} (10. Ng5 $5 {[%cal Rc3b5]}) 10... Nf5 {[%emt 0:05:42]} 11. Rd3 {[%emt 0:08:25]} (11. Bd2 $11) 11... O-O {[%emt 0:07:03]} 12. Rad1 {[%emt 0:01:31]} Re8 {[%emt 0:04:54]} 13. Ne4 $2 {[%emt 0:11:17]} (13. Bc1 $11) 13... b6 $2 {[%emt 0:05:15]} (13... Nxe3 $19 14. Rxe3 f5) 14. Nfg5 $11 {[%emt 0:04:55]} Rb8 {[%emt 0:03:04]} (14... Nxe3 $11 15. Rxe3 h6) 15. Nxe6 $1 $14 {[%emt 0:01:01]} Bxe6 {[%emt 0:00:19]} 16. Ng5 {[%emt 0:11:01]} (16. Bg5 $16) 16... Bc4 $11 {[%emt 0:07:14]} 17. Rc3 {[%emt 0:04:53]} Bxe2 {[%emt 0:01:54]} 18. Rd7 {[%emt 0:00:14]} c5 {[%emt 0:17:26]} 19. Bd5 {[%emt 0:05:21]} Re7 {[%emt 0:01:20]} ({Black should play} 19... Red8 $1 $15 20. Bxf7+ Kh8) 20. Bxf7+ {[%emt 0:01:08]} Kf8 {[%emt 0:00:34][%cal Bg8f8,Bf8e7,Be7d6][%mdl 32]} 21. Rxe7 {[%emt 0:01:07]} Kxe7 {[%emt 0:01:38]} 22. Ra3 {[%emt 0:00:34]} a5 {[%emt 0:03:32] [#] White must now prevent ...Rd8.} 23. Rb3 $2 {[%emt 0:03:26]} (23. Bd5 $11 {and White stays safe.}) 23... Nd4 $19 {[%emt 0:05:50]} 24. Bxd4 {[%emt 0:02:36]} (24. Bd5) 24... exd4 {[%emt 0:00:07]} ({And not} 24... cxd4 25. Bd5 $17) 25. Bd5 {[%emt 0:01:14]} c4 {[%emt 0:03:12]} 26. Ra3 {[%emt 0:00:57]} Kd6 {[%emt 0:04:09]} 27. Bf3 {[%emt 0:00:17]} d3 {[%emt 0:01:16]} 28. cxd3 {[%emt 0:09:09]} Bxd3 {[%emt 0:01:35]} 29. Ne4+ {[%emt 0:03:50]} Bxe4 {[%emt 0:03:11]} 30. Bxe4 {[%emt 0:00:05]} Re8 {[%emt 0:00:28]} 31. f3 {[%emt 0:00:10]} (31. Re3) 31... Bxb2 {[%emt 0:00:11] Black is clearly winning.} 32. Ra4 {[%emt 0:00:05]} Kc5 {[%emt 0:00:36][%cal Oe8e4] aiming for ...Rxe4!} 33. Kf2 {[%emt 0:00:23] [#]} Rxe4 $1 {[%emt 0:01:02][%mdl 512] Weighted Error Value: White=0.76/Black=0.27 (precise)} 0-1

[Event "12th WLC Weekend 2022"]
[Site "Eindhoven"]
[Date "2022.05.14"]
[Round "3.17"]
[White "Faber, Hugo"]
[Black "Krenning, Jasper"]
[Result "1-0"]
[ECO "C62"]
[WhiteElo "2076"]
[BlackElo "1736"]
[Annotator "TA"]
[PlyCount "81"]
[EventDate "2022.05.13"]
[EventType "swiss"]
[EventCountry "NED"]
[SourceTitle "playchess.com"]
[Source "ChessBase"]
[SourceQuality "1"]
[TimeControl "5400+30"]

{[%evp 13,81,6,67,70,80,70,70,70,66,69,70,64,56,53,104,100,102,54,54,14,201,206,197,202,207,207,214,207,231,210,242,245,217,185,191,201,179,204,242,160,366,369,371,376,375,310,431,432,416,321,368,249,256,230,207,214,237,217,270,262,315,328,316,329,411,406,565,548,845,817]} 1. e4 {[%emt 0:00:27]} e5 {[%emt 0:00:06]} 2. Nf3 {[%emt 0:00:18]} Nc6 {[%emt 0:00:11]} 3. Bb5 {[%emt 0:00:29]} d6 {[%emt 0:01:13]} 4. d4 {[%emt 0:01:45]} exd4 {[%emt 0:00:25]} 5. Qxd4 {[%emt 0:00:58]} Bd7 {[%emt 0:03:03]} 6. Bxc6 {[%emt 0:00:32]} Bxc6 {[%emt 0:00:17]} 7. Bg5 {[%emt 0:00:31]} f6 {[%emt 0:11:14]} (7... Be7 $11 8. Qxg7 Bf6 9. Qxh8 Bxh8 10. Bxd8 Bxb2 11. Bxc7 Bxa1) 8. Bh4 {[%emt 0:00:45] C62: Ruy Lopez: Steinitz Defence.} h5 {[%emt 0:05:08]} 9. Nc3 {[%emt 0:05:04] [#]} Qd7 $146 {[%emt 0:04:10]} ({Predecessor:} 9... Rh6 10. Bg3 g5 11. Qc4 Ne7 12. h4 g4 13. Nd4 Qd7 14. Ne6 f5 15. Ng5 Ng6 {1-0 (52) Amrein,R (2287)-Suket,F (2082) Szombathely 2003}) 10. h3 {[%emt 0:04:39] White is slightly better.} b6 {[%emt 0:00:12]} 11. O-O-O {[%emt 0:07:18]} O-O-O {[%emt 0:02:05]} 12. Qc4 {[%emt 0:03:16]} Kb8 {[%emt 0:03:15]} 13. Rhe1 {[%emt 0:06:12]} g5 {[%emt 0:03:17]} (13... Ne7 $14) 14. Bg3 $16 {[%emt 0:01:14]} Bb7 {[%emt 0:11:02]} 15. Nd4 {[%emt 0:02:14] 0x0.0024f7dd5093dp-1022s more active pieces.} (15. e5 $16) 15... Ne7 {[%emt 0:03:16]} 16. Ne6 {[%emt 0:03:56] Nb5 is the strong threat. Pair of Knights!} Ng6 $2 {[%emt 0:07:18] A mistake that costs the game.} 17. Nxd8 $18 {[%emt 0:02:09]} Qxd8 {[%emt 0:00:12]} 18. Nd5 {[%emt 0:09:35]} Ne5 {[%emt 0:03:35]} 19. Bxe5 {[%emt 0:03:02]} fxe5 {[%emt 0:02:29]} 20. Rd3 {[%emt 0:01:19]} c6 {[%emt 0:11:29]} 21. Nb4 {[%emt 0:00:54]} Qc8 {[%emt 0:00:20] [#]} 22. Rc3 $1 {[%emt 0:00:49]} c5 {[%emt 0:04:06]} 23. Qf7 {[%emt 0:05:24]} g4 {[%emt 0:09:03]} 24. Nd5 {[%emt 0:03:56]} Bh6+ {[%emt 0:02:57] [#]} 25. Kd1 $1 {[%emt 0:00:25]} Qd8 {[%emt 0:02:57]} 26. Qe7 {[%emt 0:03:35]} ({Don't do} 26. Qxh5 $6 Bxd5 27. exd5 Bd2 28. Qxg4 Bxc3 29. bxc3 Rg8 $16) 26... Bxd5 $2 {[%emt 0:04:47]} (26... Qxe7 $16 {is a better defense.} 27. Nxe7 Bg5) 27. Qxd8+ {[%emt 0:00:15]} Rxd8 {[%emt 0:00:11]} 28. exd5 $16 {[%emt 0:00:10][%mdl 4096] Endgame KRR-KRB} Rf8 {[%emt 0:00:14]} 29. Re2 {[%emt 0:04:36]} Rf5 {[%emt 0:02:51]} 30. hxg4 {[%emt 0:02:42]} hxg4 {[%emt 0:00:04]} 31. Rc4 {[%emt 0:01:49]} g3 {[%emt 0:00:36]} 32. Ke1 {[%emt 0:03:33] Strongly threatening Rg4.} Bf4 {[%emt 0:00:49]} 33. fxg3 {[%emt 0:01:35]} Bxg3+ {[%emt 0:00:10]} 34. Kd2 {[%emt 0:00:08] Black must now prevent Rg4.} Rg5 {[%emt 0:02:49] Against Rg4} 35. Rc3 {[%emt 0:03:34]} b5 {[%emt 0:00:27]} 36. Rf3 {[%emt 0:00:41]} Bf4+ {[%emt 0:00:23]} 37. Kd3 {[%emt 0:01:22]} c4+ {[%emt 0:00:35]} 38. Ke4 {[%emt 0:00:11]} Bc1 {[%emt 0:00:33]} 39. c3 {[%emt 0:01:46]} a5 {[%emt 0:00:48]} 40. g3 {[%emt 0:00:41]} b4 {[%emt 0:01:14]} 41. Rc2 {[%emt 0:05:44] Weighted Error Value: White=0.16 (very precise) /Black=0.48} 1-0

[Event "12th WLC Weekend 2022"]
[Site "Eindhoven"]
[Date "2022.05.14"]
[Round "3.18"]
[White "Cebula, Jerzy"]
[Black "Oskam, Julian"]
[Result "1-0"]
[ECO "B90"]
[WhiteElo "1994"]
[BlackElo "1627"]
[Annotator "TA"]
[PlyCount "53"]
[EventDate "2022.05.13"]
[EventType "swiss"]
[EventCountry "NED"]
[SourceTitle "playchess.com"]
[Source "ChessBase"]
[SourceQuality "1"]
[TimeControl "5400+30"]

{[%evp 16,53,15,-15,-4,-12,43,64,110,96,231,226,449,247,237,166,564,411,774,586,847,634,1180,1176,1378,1365,29984,29985,29985,29986,29983,1187,29993,1875,1539,1339,29988,29989,29989,29990]} 1. e4 {[%emt 0:00:03]} c5 {[%emt 0:00:06]} 2. Nf3 {[%emt 0:00:05]} d6 {[%emt 0:00:06]} 3. d4 {[%emt 0:00:04]} cxd4 {[%emt 0:00:06]} 4. Nxd4 {[%emt 0:00:01]} Nf6 {[%emt 0:00:08]} 5. Nc3 {[%emt 0:00:08]} a6 {[%emt 0:00:04]} 6. Be3 {[%emt 0:00:12]} e5 {[%emt 0:00:19]} 7. Nb3 {[%emt 0:00:11]} Be6 {[%emt 0:02:20]} 8. Qd2 {[%emt 0:00:27]} Nbd7 {[%emt 0:01:48] The main line 8...Nbd7 scores better than 8...Be7.} 9. f4 {[%emt 0:02:27]} b5 {[%emt 0:06:04] B90: Sicilian Najdorf: Unusual White 6th moves, 6 Be3 Ng4 and 6 Be3 e5.} 10. f5 {[%emt 0:03:48]} Bxb3 {[%emt 0:01:18]} (10... Bc4 $11) 11. axb3 $14 {[%emt 0:00:08] [#]} b4 $146 {[%emt 0:08:01]} (11... Be7 $14 {should be considered.}) ({Predecessor:} 11... Be7 12. Be2 O-O 13. Bf3 Nc5 14. b4 Ncd7 15. g4 d5 16. Nxd5 Nxd5 17. Qxd5 Bh4+ {1-0 (37) Martin,J (2280)-Piotrowski,P (2201) Warsaw 2016}) 12. Nd5 $16 {[%emt 0:00:36] White is much more active. The black rooks are badly placed.} Nxe4 {[%emt 0:08:16]} (12... Be7 $16 {was worth a try.}) 13. Qxb4 $18 {[%emt 0:00:31]} Nec5 {[%emt 0:00:45]} (13... Nef6 {was called for.}) 14. Be2 {[%emt 0:05:48]} (14. Qc4 $142) 14... Rb8 {[%emt 0:08:13]} 15. Qc4 $36 {[%emt 0:06:24][%mdl 2048] aiming for b4. Keeping Black busy.} a5 {[%emt 0:03:25]} (15... Nb6 16. Nxb6 Qxb6) 16. O-O {[%emt 0:01:42][%cal Bh1f1,Bf1f4,Bf4e4][%mdl 32] Threatens to win with b4.} e4 {[%emt 0:06:08]} (16... Be7 $142 17. Rfd1 O-O 18. Rxa5 Bg5 19. Bxg5 (19. Bxc5 Nxc5 20. b4 Nd7 $16) 19... Qxg5) 17. Qc3 {[%emt 0:03:47]} Rc8 {[%emt 0:04:19]} 18. Bc4 {[%emt 0:11:15]} Ra8 {[%emt 0:08:53]} 19. Bb5 {[%emt 0:04:39]} Rg8 {[%emt 0:04:57]} 20. Rf4 {[%emt 0:09:01] Bxc5 is the strong threat.} Qb8 {[%emt 0:03:39]} 21. Bxc5 {[%emt 0:03:24]} dxc5 {[%emt 0:03:00]} 22. Rxe4+ {[%emt 0:02:50]} Kd8 {[%emt 0:00:07] [#]} 23. Rxa5 {[%emt 0:01:41]} (23. Rae1 $142 $1 Be7 (23... Bd6 24. Qxg7) 24. Rxe7 Qxb5 25. Qxg7 $3 {[%mdl 512]} Kc8 26. Qxg8+ Kb7 27. Qxa8+ $3 {[%mdl 512]} Kxa8 28. Nc7+ Kb7 29. Nxb5) 23... c4 {[%emt 0:02:03] [#]} 24. Bxd7 {[%emt 0:05:51]} (24. Re8+ $142 $3 {[%mdl 512]} Kxe8 {[#]} 25. Qe5+ $3 {[%mdl 512]} Kd8 26. Rxa8 Bc5+ 27. Kf1 Qxa8 28. Qc7+ Ke8 29. Bxd7+ Kf8 30. Qxc5#) 24... Kxd7 {[%emt 0:00:35]} 25. Rxc4 {[%emt 0:01:29] Intending Rc7+ and mate.} Bd6 {[%emt 0:06:47] Prevents Rc7+.} 26. Rxa8 {[%emt 0:00:57]} Qxa8 {[%emt 0:00:02]} 27. Nb6+ {[%emt 0:00:19] Black did not feel at home in the position after the opening.  Weighted Error Value: White=0.78/Black=2.02} 1-0